[Event "Titled Tuesday Blitz June 14 Late 2022"]
[White "Nakamura, Hikaru"]
[Black "Dardha, Daniel"]
[WhiteFideId "2016192"]
[BlackFideId "240990"]
[WhiteElo "2850"]
[BlackElo "2482"]
[Result "1/2-1/2"]
[Round "06"]
[TimeControl "180+1"]
[Date "2022.06.14"]
[WhiteClock "0:00:27"]
[BlackClock "0:00:14"]

1. d4 {[%clk 0:03:00]}  d5 {[%clk 0:02:57]} 2. Nf3 {[%clk 0:03:00]}  Nf6 {[%clk 0:02:55]} 3. Bf4 {[%clk 0:03:01]}  c5 {[%clk 0:02:54]} 4. e3 {[%clk 0:03:01]}  Nc6 {[%clk 0:02:52]} 5. Nbd2 {[%clk 0:03:01]}  Bg4 {[%clk 0:02:51]} 6. c3 {[%clk 0:02:56]}  e6 {[%clk 0:02:49]} 7. Qa4 {[%clk 0:02:53]}  Bxf3 {[%clk 0:02:46]} 8. Nxf3 {[%clk 0:02:52]}  Nd7 {[%clk 0:02:36]} 9. Bd3 {[%clk 0:02:47]}  Be7 {[%clk 0:02:32]} 10. O-O {[%clk 0:02:39]}  O-O {[%clk 0:02:28]} 11. Rad1 {[%clk 0:02:39]}  a6 {[%clk 0:02:22]} 12. Rfe1 {[%clk 0:02:38]}  b5 {[%clk 0:02:19]} 13. Qc2 {[%clk 0:02:38]}  f5 {[%clk 0:02:15]} 14. Bf1 {[%clk 0:02:29]}  c4 {[%clk 0:02:12]} 15. Bg3 {[%clk 0:02:24]}  Nf6 {[%clk 0:02:09]} 16. Nd2 {[%clk 0:02:24]}  Ne4 {[%clk 0:02:05]} 17. Be2 {[%clk 0:02:16]}  Nxd2 {[%clk 0:02:01]} 18. Qxd2 {[%clk 0:02:15]}  Bd6 {[%clk 0:02:01]} 19. b3 {[%clk 0:02:11]}  Bxg3 {[%clk 0:01:56]} 20. hxg3 {[%clk 0:02:12]}  Qd6 {[%clk 0:01:53]} 21. Rb1 {[%clk 0:02:12]}  Rfb8 {[%clk 0:01:50]} 22. g4 {[%clk 0:02:12]}  g6 {[%clk 0:01:44]} 23. gxf5 {[%clk 0:02:10]}  exf5 {[%clk 0:01:41]} 24. Bf3 {[%clk 0:02:10]}  Ne7 {[%clk 0:01:40]} 25. a4 {[%clk 0:02:09]}  Kg7 {[%clk 0:01:36]} 26. g3 {[%clk 0:02:09]}  h5 {[%clk 0:01:31]} 27. Kg2 {[%clk 0:02:08]}  cxb3 {[%clk 0:01:22]} 28. Rxb3 {[%clk 0:02:05]}  bxa4 {[%clk 0:01:21]} 29. Rxb8 {[%clk 0:02:05]}  Rxb8 {[%clk 0:01:22]} 30. Ra1 {[%clk 0:02:03]}  a3 {[%clk 0:01:12]} 31. Qa2 {[%clk 0:02:03]}  a5 {[%clk 0:01:07]} 32. Qxa3 {[%clk 0:02:03]}  Qxa3 {[%clk 0:01:05]} 33. Rxa3 {[%clk 0:02:04]}  Rb5 {[%clk 0:01:01]} 34. Be2 {[%clk 0:01:59]}  Rb2 {[%clk 0:01:00]} 35. Bf1 {[%clk 0:01:56]}  Rc2 {[%clk 0:00:55]} 36. Bd3 {[%clk 0:01:54]}  Rc1 {[%clk 0:00:53]} 37. Bb5 {[%clk 0:01:41]}  Ng8 {[%clk 0:00:50]} 38. Be2 {[%clk 0:01:36]}  Nf6 {[%clk 0:00:49]} 39. Bf3 {[%clk 0:01:37]}  g5 {[%clk 0:00:48]} 40. Rxa5 {[%clk 0:01:37]}  Rxc3 {[%clk 0:00:46]} 41. Bxd5 {[%clk 0:01:37]}  f4 {[%clk 0:00:43]} 42. gxf4 {[%clk 0:01:32]}  gxf4 {[%clk 0:00:44]} 43. e4 {[%clk 0:01:31]}  Rd3 {[%clk 0:00:40]} 44. e5 {[%clk 0:01:28]}  Nxd5 {[%clk 0:00:38]} 45. Rxd5 {[%clk 0:01:28]}  Kf7 {[%clk 0:00:37]} 46. Rd6 {[%clk 0:01:28]}  Ke7 {[%clk 0:00:35]} 47. Rh6 {[%clk 0:01:12]}  Rxd4 {[%clk 0:00:30]} 48. Kf3 {[%clk 0:01:12]}  Ra4 {[%clk 0:00:23]} 49. Rf6 {[%clk 0:01:12]}  h4 {[%clk 0:00:19]} 50. Rh6 {[%clk 0:01:12]}  Ra2 {[%clk 0:00:16]} 51. Ke4 {[%clk 0:00:59]}  Rxf2 {[%clk 0:00:14]} 52. Kf5 {[%clk 0:01:00]}  Re2 {[%clk 0:00:12]} 53. Rh7+ {[%clk 0:01:00]}  Kd8 {[%clk 0:00:12]} 54. Rh8+ {[%clk 0:00:16]}  Ke7 {[%clk 0:00:11]} 55. Rh7+ {[%clk 0:00:16]}  Kd8 {[%clk 0:00:11]} 56. Kxf4 {[%clk 0:00:17]}  Ra2 {[%clk 0:00:11]} 57. Kf5 {[%clk 0:00:17]}  Ra6 {[%clk 0:00:11]} 58. Rh8+ {[%clk 0:00:17]}  Ke7 {[%clk 0:00:11]} 59. Rh7+ {[%clk 0:00:18]}  Ke8 {[%clk 0:00:11]} 60. e6 {[%clk 0:00:19]}  Ra1 {[%clk 0:00:10]} 61. Rxh4 {[%clk 0:00:19]}  Rf1+ {[%clk 0:00:10]} 62. Ke5 {[%clk 0:00:20]}  Re1+ {[%clk 0:00:10]} 63. Kf6 {[%clk 0:00:20]}  Rf1+ {[%clk 0:00:10]} 64. Ke5 {[%clk 0:00:21]}  Re1+ {[%clk 0:00:10]} 65. Kd5 {[%clk 0:00:22]}  Rd1+ {[%clk 0:00:10]} 66. Kc5 {[%clk 0:00:23]}  Rc1+ {[%clk 0:00:10]} 67. Kd4 {[%clk 0:00:23]}  Rd1+ {[%clk 0:00:11]} 68. Kc3 {[%clk 0:00:23]}  Re1 {[%clk 0:00:11]} 69. Rh6 {[%clk 0:00:24]}  Ke7 {[%clk 0:00:10]} 70. Kd2 {[%clk 0:00:24]}  Rxe6 {[%clk 0:00:10]} 71. Rh7+ {[%clk 0:00:25]}  Kd6 {[%clk 0:00:11]} 72. Rh3 {[%clk 0:00:26]}  Re7 {[%clk 0:00:11]} 73. Rd3+ {[%clk 0:00:26]}  Ke6 {[%clk 0:00:12]} 74. Re3+ {[%clk 0:00:27]}  Kd7 {[%clk 0:00:13]} 75. Rxe7+ {[%clk 0:00:27]}  Kxe7 {[%clk 0:00:14]} 1/2-1/2


[Site "https://www.chess.com"]

[Event "Titled Tuesday Blitz June 14 Late 2022"]
[White "Omariev, Maksim"]
[Black "Jiganchine, Roman"]
[WhiteFideId "4193423"]
[BlackFideId "2603667"]
[WhiteElo "2478"]
[BlackElo "2220"]
[Result "1/2-1/2"]
[Round "06"]
[TimeControl "180+1"]
[Date "2022.06.15"]
[WhiteClock "0:00:05"]
[BlackClock "0:00:16"]

1. e4 {[%clk 0:02:50]}  c6 {[%clk 0:02:59]} 2. d4 {[%clk 0:02:47]}  d5 {[%clk 0:02:59]} 3. exd5 {[%clk 0:02:47]}  cxd5 {[%clk 0:02:58]} 4. Bd3 {[%clk 0:02:48]}  Nc6 {[%clk 0:02:56]} 5. c3 {[%clk 0:02:48]}  Nf6 {[%clk 0:02:56]} 6. h3 {[%clk 0:02:47]}  g6 {[%clk 0:02:56]} 7. Nf3 {[%clk 0:02:46]}  Bf5 {[%clk 0:02:56]} 8. Bxf5 {[%clk 0:02:40]}  gxf5 {[%clk 0:02:55]} 9. Bf4 {[%clk 0:02:40]}  Rg8 {[%clk 0:02:42]} 10. g3 {[%clk 0:02:19]}  e6 {[%clk 0:02:42]} 11. Qb3 {[%clk 0:02:13]}  Qb6 {[%clk 0:02:32]} 12. Qxb6 {[%clk 0:02:12]}  axb6 {[%clk 0:02:32]} 13. Nbd2 {[%clk 0:02:08]}  O-O-O {[%clk 0:02:12]} 14. O-O-O {[%clk 0:02:03]}  Bd6 {[%clk 0:01:59]} 15. Bxd6 {[%clk 0:01:56]}  Rxd6 {[%clk 0:01:59]} 16. Rde1 {[%clk 0:01:57]}  Rg7 {[%clk 0:01:51]} 17. Ne5 {[%clk 0:01:56]}  Rd8 {[%clk 0:01:46]} 18. f3 {[%clk 0:01:30]}  Nxe5 {[%clk 0:01:43]} 19. dxe5 {[%clk 0:01:29]}  Nh5 {[%clk 0:01:30]} 20. g4 {[%clk 0:01:27]}  Nf4 {[%clk 0:01:19]} 21. Kc2 {[%clk 0:01:23]}  h5 {[%clk 0:01:17]} 22. gxf5 {[%clk 0:01:20]}  exf5 {[%clk 0:01:16]} 23. h4 {[%clk 0:01:13]}  Rg2 {[%clk 0:01:10]} 24. Reg1 {[%clk 0:00:53]}  Rdg8 {[%clk 0:01:08]} 25. Rxg2 {[%clk 0:00:44]}  Rxg2 {[%clk 0:01:07]} 26. Rd1 {[%clk 0:00:25]}  Rh2 {[%clk 0:01:00]} 27. Rg1 {[%clk 0:00:24]}  Ne6 {[%clk 0:00:53]} 28. Rg8+ {[%clk 0:00:21]}  Kd7 {[%clk 0:00:53]} 29. Rb8 {[%clk 0:00:19]}  Nd8 {[%clk 0:00:50]} 30. Kd3 {[%clk 0:00:15]}  Rxh4 {[%clk 0:00:49]} 31. Nb3 {[%clk 0:00:15]}  Rf4 {[%clk 0:00:46]} 32. Ke3 {[%clk 0:00:14]}  Ra4 {[%clk 0:00:45]} 33. a3 {[%clk 0:00:12]}  h4 {[%clk 0:00:44]} 34. Nd4 {[%clk 0:00:07]}  h3 {[%clk 0:00:39]} 35. Kf2 {[%clk 0:00:03]}  Kc7 {[%clk 0:00:35]} 36. Rxd8 {[%clk 0:00:02]}  Kxd8 {[%clk 0:00:35]} 37. Kg3 {[%clk 0:00:03]}  f4+ {[%clk 0:00:25]} 38. Kxh3 {[%clk 0:00:03]}  Kd7 {[%clk 0:00:23]} 39. Kg4 {[%clk 0:00:04]}  Ra8 {[%clk 0:00:22]} 40. Kxf4 {[%clk 0:00:04]}  Rh8 {[%clk 0:00:23]} 41. Ke3 {[%clk 0:00:03]}  Rh2 {[%clk 0:00:22]} 42. b4 {[%clk 0:00:03]}  Ra2 {[%clk 0:00:22]} 43. f4 {[%clk 0:00:03]}  Rxa3 {[%clk 0:00:22]} 44. Nb5 {[%clk 0:00:04]}  Ra1 {[%clk 0:00:21]} 45. Nd6 {[%clk 0:00:04]}  f6 {[%clk 0:00:19]} 46. Nxb7 {[%clk 0:00:03]}  fxe5 {[%clk 0:00:19]} 47. fxe5 {[%clk 0:00:04]}  Re1+ {[%clk 0:00:18]} 48. Kd4 {[%clk 0:00:05]}  Rd1+ {[%clk 0:00:18]} 49. Ke3 {[%clk 0:00:05]}  Re1+ {[%clk 0:00:18]} 50. Kd4 {[%clk 0:00:06]}  Rd1+ {[%clk 0:00:18]} 51. Ke3 {[%clk 0:00:05]}  Re1+ {[%clk 0:00:16]} 1/2-1/2


[Site "https://www.chess.com"]

[Event "Titled Tuesday Blitz June 14 Late 2022"]
[White "Paravyan, David"]
[Black "Tarigan, Gilbert Elroy"]
[WhiteFideId "4194985"]
[BlackFideId "7108133"]
[WhiteElo "2569"]
[BlackElo "1908"]
[Result "1-0"]
[Round "06"]
[TimeControl "180+1"]
[Date "2022.06.14"]
[WhiteClock "0:00:47"]
[BlackClock "0:00:02"]

1. e4 {[%clk 0:03:00]}  c5 {[%clk 0:02:59]} 2. Nf3 {[%clk 0:03:00]}  Nc6 {[%clk 0:02:59]} 3. d4 {[%clk 0:03:00]}  cxd4 {[%clk 0:03:00]} 4. Nxd4 {[%clk 0:03:01]}  Nf6 {[%clk 0:03:00]} 5. Nc3 {[%clk 0:02:59]}  e5 {[%clk 0:03:00]} 6. Ndb5 {[%clk 0:02:58]}  d6 {[%clk 0:03:00]} 7. Bg5 {[%clk 0:02:59]}  a6 {[%clk 0:03:00]} 8. Na3 {[%clk 0:02:58]}  b5 {[%clk 0:02:59]} 9. Nd5 {[%clk 0:02:58]}  Be7 {[%clk 0:02:59]} 10. Bxf6 {[%clk 0:02:59]}  Bxf6 {[%clk 0:03:00]} 11. c3 {[%clk 0:02:59]}  Rb8 {[%clk 0:02:57]} 12. Nc2 {[%clk 0:02:57]}  Bg5 {[%clk 0:02:50]} 13. a4 {[%clk 0:02:57]}  bxa4 {[%clk 0:02:40]} 14. Ncb4 {[%clk 0:02:56]}  Bd7 {[%clk 0:02:26]} 15. Bxa6 {[%clk 0:02:48]}  Nxb4 {[%clk 0:02:22]} 16. Nxb4 {[%clk 0:02:49]}  O-O {[%clk 0:02:20]} 17. O-O {[%clk 0:02:41]}  Qb6 {[%clk 0:02:16]} 18. Bd3 {[%clk 0:02:33]}  Ra8 {[%clk 0:02:16]} 19. Bc2 {[%clk 0:02:30]}  a3 {[%clk 0:02:15]} 20. bxa3 {[%clk 0:02:25]}  Rfc8 {[%clk 0:02:14]} 21. Bb3 {[%clk 0:02:25]}  Be6 {[%clk 0:02:09]} 22. Bxe6 {[%clk 0:02:20]}  fxe6 {[%clk 0:02:09]} 23. Qg4 {[%clk 0:02:20]}  Bd2 {[%clk 0:01:32]} 24. Qxe6+ {[%clk 0:02:20]}  Kh8 {[%clk 0:01:33]} 25. Rad1 {[%clk 0:02:21]}  Bxc3 {[%clk 0:01:22]} 26. Rxd6 {[%clk 0:02:20]}  Qc5 {[%clk 0:00:56]} 27. Nd5 {[%clk 0:02:20]}  Bd4 {[%clk 0:00:47]} 28. Ne7 {[%clk 0:01:55]}  Re8 {[%clk 0:00:36]} 29. Rd7 {[%clk 0:01:39]}  Qc2 {[%clk 0:00:21]} 30. Qf7 {[%clk 0:01:30]}  Rg8 {[%clk 0:00:02]} 31. Nxg8 {[%clk 0:00:48]}  Rxg8 {[%clk 0:00:03]} 32. Re7 {[%clk 0:00:48]}  Qb2 {[%clk 0:00:02]} 33. Re8 {[%clk 0:00:47]} 1-0


[Site "https://www.chess.com"]

[Event "Titled Tuesday Blitz June 14 Late 2022"]
[White "Perera Alfonso, Rene Humberto"]
[Black "Zhou, Liran"]
[WhiteFideId "3514722"]
[BlackFideId "30931967"]
[WhiteElo "2313"]
[BlackElo "2644"]
[Result "1-0"]
[Round "06"]
[TimeControl "180+1"]
[Date "2022.06.15"]
[WhiteClock "0:00:48"]
[BlackClock "0:00:03"]

1. e4 {[%clk 0:02:59]}  c5 {[%clk 0:02:58]} 2. Nf3 {[%clk 0:02:58]}  d6 {[%clk 0:02:57]} 3. d4 {[%clk 0:02:58]}  cxd4 {[%clk 0:02:57]} 4. Nxd4 {[%clk 0:02:59]}  Nf6 {[%clk 0:02:58]} 5. Nc3 {[%clk 0:02:59]}  a6 {[%clk 0:02:56]} 6. Be3 {[%clk 0:02:59]}  e5 {[%clk 0:02:53]} 7. Nb3 {[%clk 0:02:59]}  Be6 {[%clk 0:02:52]} 8. Be2 {[%clk 0:03:00]}  Be7 {[%clk 0:02:50]} 9. O-O {[%clk 0:03:00]}  O-O {[%clk 0:02:50]} 10. Qd3 {[%clk 0:03:01]}  Nbd7 {[%clk 0:02:45]} 11. Nd5 {[%clk 0:03:00]}  Bxd5 {[%clk 0:02:44]} 12. exd5 {[%clk 0:03:01]}  Nc5 {[%clk 0:02:42]} 13. Qd2 {[%clk 0:02:59]}  Ne8 {[%clk 0:02:33]} 14. f4 {[%clk 0:02:55]}  e4 {[%clk 0:02:21]} 15. f5 {[%clk 0:02:48]}  Nf6 {[%clk 0:02:07]} 16. Rad1 {[%clk 0:02:41]}  Nfd7 {[%clk 0:01:59]} 17. Kh1 {[%clk 0:02:35]}  Bf6 {[%clk 0:01:57]} 18. c3 {[%clk 0:02:35]}  Qe7 {[%clk 0:01:49]} 19. Bd4 {[%clk 0:02:29]}  Bxd4 {[%clk 0:01:38]} 20. Nxd4 {[%clk 0:02:26]}  Nf6 {[%clk 0:01:36]} 21. c4 {[%clk 0:02:24]}  e3 {[%clk 0:01:21]} 22. Qc1 {[%clk 0:02:12]}  Rfe8 {[%clk 0:01:04]} 23. b4 {[%clk 0:02:11]}  Ncd7 {[%clk 0:01:00]} 24. Nc2 {[%clk 0:02:02]}  Rac8 {[%clk 0:00:23]} 25. Rde1 {[%clk 0:01:46]}  Qe4 {[%clk 0:00:17]} 26. Rf3 {[%clk 0:01:27]}  Ng4 {[%clk 0:00:16]} 27. h3 {[%clk 0:01:22]}  Nf2+ {[%clk 0:00:12]} 28. Kg1 {[%clk 0:01:22]}  Ne5 {[%clk 0:00:11]} 29. Rxe3 {[%clk 0:01:09]}  Qxf5 {[%clk 0:00:09]} 30. Rf1 {[%clk 0:01:02]}  Nfd3 {[%clk 0:00:09]} 31. Qd2 {[%clk 0:00:50]}  Nxc4 {[%clk 0:00:07]} 32. Rxe8+ {[%clk 0:00:50]}  Rxe8 {[%clk 0:00:07]} 33. Qxd3 {[%clk 0:00:50]}  Qxd3 {[%clk 0:00:07]} 34. Bxd3 {[%clk 0:00:51]}  Nd2 {[%clk 0:00:07]} 35. Re1 {[%clk 0:00:48]}  Rxe1+ {[%clk 0:00:06]} 36. Nxe1 {[%clk 0:00:48]}  f5 {[%clk 0:00:05]} 37. Kf2 {[%clk 0:00:48]}  Kf7 {[%clk 0:00:03]} 38. Ke3 {[%clk 0:00:48]} 1-0


[Site "https://www.chess.com"]

[Event "Titled Tuesday Blitz June 14 Late 2022"]
[White "Pesotskiy, Mikhail"]
[Black "Melikhov, Evgeny V."]
[WhiteFideId "34164453"]
[BlackFideId "4122046"]
[WhiteElo "2010"]
[BlackElo "1904"]
[Result "1-0"]
[Round "06"]
[TimeControl "180+1"]
[Date "2022.06.15"]
[WhiteClock "0:00:19"]
[BlackClock "0:00:08"]

1. d4 {[%clk 0:02:58]}  Nf6 {[%clk 0:02:59]} 2. c4 {[%clk 0:02:55]}  e6 {[%clk 0:02:59]} 3. Nc3 {[%clk 0:02:53]}  Bb4 {[%clk 0:02:59]} 4. Qc2 {[%clk 0:02:53]}  c5 {[%clk 0:02:58]} 5. dxc5 {[%clk 0:02:53]}  Na6 {[%clk 0:02:58]} 6. a3 {[%clk 0:02:53]}  Bxc3+ {[%clk 0:02:59]} 7. Qxc3 {[%clk 0:02:54]}  Nxc5 {[%clk 0:02:59]} 8. b4 {[%clk 0:02:55]}  Nce4 {[%clk 0:02:59]} 9. Qb2 {[%clk 0:02:55]}  d5 {[%clk 0:02:56]} 10. c5 {[%clk 0:02:56]}  h6 {[%clk 0:02:54]} 11. f3 {[%clk 0:02:50]}  Ng5 {[%clk 0:02:54]} 12. Bf4 {[%clk 0:02:34]}  O-O {[%clk 0:02:51]} 13. e3 {[%clk 0:02:24]}  Re8 {[%clk 0:02:45]} 14. Ne2 {[%clk 0:02:18]}  Bd7 {[%clk 0:02:03]} 15. Ng3 {[%clk 0:02:11]}  b6 {[%clk 0:01:57]} 16. Bd6 {[%clk 0:01:13]}  bxc5 {[%clk 0:01:56]} 17. Bxc5 {[%clk 0:01:14]}  e5 {[%clk 0:01:46]} 18. Be2 {[%clk 0:01:14]}  d4 {[%clk 0:01:18]} 19. O-O {[%clk 0:01:11]}  dxe3 {[%clk 0:00:57]} 20. Bxe3 {[%clk 0:01:12]}  Ba4 {[%clk 0:00:56]} 21. Rac1 {[%clk 0:01:05]}  Rc8 {[%clk 0:00:54]} 22. Bxa7 {[%clk 0:01:01]}  e4 {[%clk 0:00:40]} 23. fxe4 {[%clk 0:00:40]}  Ngxe4 {[%clk 0:00:38]} 24. Nxe4 {[%clk 0:00:41]}  Rxe4 {[%clk 0:00:28]} 25. Bf3 {[%clk 0:00:40]}  Rec4 {[%clk 0:00:26]} 26. Rxc4 {[%clk 0:00:36]}  Rxc4 {[%clk 0:00:26]} 27. Rc1 {[%clk 0:00:37]}  Qc7 {[%clk 0:00:20]} 28. Rxc4 {[%clk 0:00:27]}  Qxc4 {[%clk 0:00:20]} 29. h3 {[%clk 0:00:28]}  Bb5 {[%clk 0:00:19]} 30. Bd4 {[%clk 0:00:20]}  Qf1+ {[%clk 0:00:17]} 31. Kh2 {[%clk 0:00:21]}  Ne8 {[%clk 0:00:12]} 32. Qf2 {[%clk 0:00:19]}  Qd3 {[%clk 0:00:10]} 33. Qe3 {[%clk 0:00:19]}  Qxe3 {[%clk 0:00:09]} 34. Bxe3 {[%clk 0:00:20]}  Nd6 {[%clk 0:00:08]} 35. Bd1 {[%clk 0:00:18]}  Nc4 {[%clk 0:00:07]} 36. Bc1 {[%clk 0:00:19]}  Nb6 {[%clk 0:00:06]} 37. Kg3 {[%clk 0:00:19]}  Ba4 {[%clk 0:00:06]} 38. Bxa4 {[%clk 0:00:17]}  Nxa4 {[%clk 0:00:06]} 39. Kf4 {[%clk 0:00:18]}  f6 {[%clk 0:00:07]} 40. Ke4 {[%clk 0:00:18]}  Kf7 {[%clk 0:00:08]} 41. Kd5 {[%clk 0:00:17]}  g5 {[%clk 0:00:07]} 42. Kc6 {[%clk 0:00:17]}  f5 {[%clk 0:00:07]} 43. b5 {[%clk 0:00:18]}  f4 {[%clk 0:00:07]} 44. b6 {[%clk 0:00:18]}  Nxb6 {[%clk 0:00:07]} 45. Kxb6 {[%clk 0:00:18]}  Kf6 {[%clk 0:00:08]} 46. a4 {[%clk 0:00:18]}  h5 {[%clk 0:00:08]} 47. a5 {[%clk 0:00:18]}  g4 {[%clk 0:00:08]} 48. hxg4 {[%clk 0:00:19]}  h4 {[%clk 0:00:08]} 49. Bxf4 {[%clk 0:00:19]} 1-0


[Site "https://www.chess.com"]

[Event "Titled Tuesday Blitz June 14 Late 2022"]
[White "Petrovic, Aleksa"]
[Black "Prieto Aranguren, Alain"]
[WhiteFideId "967629"]
[BlackFideId "2268906"]
[WhiteElo "2117"]
[BlackElo "2224"]
[Result "1-0"]
[Round "06"]
[TimeControl "180+1"]
[Date "2022.06.15"]
[WhiteClock "0:00:03"]
[BlackClock "0:00:06"]

1. d4 {[%clk 0:03:00]}  d5 {[%clk 0:02:55]} 2. c4 {[%clk 0:03:00]}  c6 {[%clk 0:02:54]} 3. Nc3 {[%clk 0:02:57]}  Nf6 {[%clk 0:02:54]} 4. e3 {[%clk 0:02:57]}  g6 {[%clk 0:02:51]} 5. Qb3 {[%clk 0:02:52]}  Bg7 {[%clk 0:02:50]} 6. Bd2 {[%clk 0:02:51]}  O-O {[%clk 0:02:49]} 7. Rc1 {[%clk 0:02:51]}  e6 {[%clk 0:02:41]} 8. Nf3 {[%clk 0:02:39]}  Nbd7 {[%clk 0:02:39]} 9. Bd3 {[%clk 0:02:33]}  Re8 {[%clk 0:02:38]} 10. O-O {[%clk 0:02:26]}  Qb6 {[%clk 0:02:36]} 11. Qa3 {[%clk 0:02:13]}  dxc4 {[%clk 0:02:32]} 12. Na4 {[%clk 0:02:06]}  Qd8 {[%clk 0:02:24]} 13. Rxc4 {[%clk 0:01:49]}  b5 {[%clk 0:02:23]} 14. Rxc6 {[%clk 0:01:48]}  bxa4 {[%clk 0:02:24]} 15. Qxa4 {[%clk 0:01:44]}  Bb7 {[%clk 0:02:20]} 16. Rc2 {[%clk 0:01:29]}  Nb6 {[%clk 0:02:17]} 17. Qa5 {[%clk 0:01:25]}  Nbd5 {[%clk 0:02:12]} 18. Rfc1 {[%clk 0:01:16]}  Qxa5 {[%clk 0:02:11]} 19. Bxa5 {[%clk 0:01:17]}  Rec8 {[%clk 0:02:10]} 20. Ne5 {[%clk 0:01:08]}  Bf8 {[%clk 0:02:05]} 21. a3 {[%clk 0:00:53]}  Bd6 {[%clk 0:01:57]} 22. Nc4 {[%clk 0:00:48]}  Bb8 {[%clk 0:01:50]} 23. g3 {[%clk 0:00:45]}  Kf8 {[%clk 0:01:48]} 24. e4 {[%clk 0:00:44]}  Ne7 {[%clk 0:01:41]} 25. f3 {[%clk 0:00:42]}  Bc7 {[%clk 0:01:35]} 26. Bxc7 {[%clk 0:00:34]}  Rxc7 {[%clk 0:01:35]} 27. Na5 {[%clk 0:00:30]}  Rxc2 {[%clk 0:01:19]} 28. Rxc2 {[%clk 0:00:31]}  Bc8 {[%clk 0:01:02]} 29. b4 {[%clk 0:00:20]}  Ke8 {[%clk 0:00:57]} 30. Bb5+ {[%clk 0:00:15]}  Bd7 {[%clk 0:00:53]} 31. Bxd7+ {[%clk 0:00:15]}  Kxd7 {[%clk 0:00:52]} 32. Nc4 {[%clk 0:00:15]}  Rc8 {[%clk 0:00:48]} 33. Ne5+ {[%clk 0:00:14]}  Kd8 {[%clk 0:00:48]} 34. Nxf7+ {[%clk 0:00:14]}  Kd7 {[%clk 0:00:48]} 35. Ne5+ {[%clk 0:00:14]}  Kd8 {[%clk 0:00:47]} 36. Rxc8+ {[%clk 0:00:14]}  Kxc8 {[%clk 0:00:47]} 37. Kf2 {[%clk 0:00:14]}  Kc7 {[%clk 0:00:46]} 38. Ke3 {[%clk 0:00:15]}  Nc6 {[%clk 0:00:46]} 39. Nxc6 {[%clk 0:00:14]}  Kxc6 {[%clk 0:00:46]} 40. Kf4 {[%clk 0:00:14]}  Nd7 {[%clk 0:00:44]} 41. Kg5 {[%clk 0:00:13]}  Kb5 {[%clk 0:00:42]} 42. Kh6 {[%clk 0:00:05]}  Ka4 {[%clk 0:00:42]} 43. Kxh7 {[%clk 0:00:05]}  Kxa3 {[%clk 0:00:43]} 44. Kxg6 {[%clk 0:00:04]}  Kxb4 {[%clk 0:00:43]} 45. h4 {[%clk 0:00:04]}  a5 {[%clk 0:00:43]} 46. h5 {[%clk 0:00:04]}  a4 {[%clk 0:00:43]} 47. h6 {[%clk 0:00:04]}  a3 {[%clk 0:00:44]} 48. Kg7 {[%clk 0:00:02]}  a2 {[%clk 0:00:40]} 49. h7 {[%clk 0:00:03]}  a1=Q {[%clk 0:00:37]} 50. h8=Q {[%clk 0:00:04]}  Qxd4+ {[%clk 0:00:37]} 51. Kg8 {[%clk 0:00:04]}  Qxh8+ {[%clk 0:00:32]} 52. Kxh8 {[%clk 0:00:05]}  Kc4 {[%clk 0:00:32]} 53. Kg7 {[%clk 0:00:05]}  Kd4 {[%clk 0:00:32]} 54. Kf7 {[%clk 0:00:05]}  e5 {[%clk 0:00:31]} 55. Ke6 {[%clk 0:00:03]}  Nf8+ {[%clk 0:00:29]} 56. Kf5 {[%clk 0:00:03]}  Nd7 {[%clk 0:00:27]} 57. g4 {[%clk 0:00:03]}  Ke3 {[%clk 0:00:27]} 58. g5 {[%clk 0:00:03]}  Kxf3 {[%clk 0:00:27]} 59. g6 {[%clk 0:00:03]}  Nc5 {[%clk 0:00:15]} 60. g7 {[%clk 0:00:03]}  Nxe4 {[%clk 0:00:16]} 61. g8=Q {[%clk 0:00:03]}  Ng3+ {[%clk 0:00:14]} 62. Kxe5 {[%clk 0:00:04]}  Ne2 {[%clk 0:00:14]} 63. Qc4 {[%clk 0:00:03]}  Ng3 {[%clk 0:00:13]} 64. Qd3+ {[%clk 0:00:03]}  Kg2 {[%clk 0:00:13]} 65. Kf4 {[%clk 0:00:03]}  Nf1 {[%clk 0:00:13]} 66. Qe2+ {[%clk 0:00:03]}  Kg1 {[%clk 0:00:13]} 67. Kf3 {[%clk 0:00:03]}  Nh2+ {[%clk 0:00:12]} 68. Kg3 {[%clk 0:00:03]}  Nf1+ {[%clk 0:00:12]} 69. Kh3 {[%clk 0:00:03]}  Ne3 {[%clk 0:00:07]} 70. Qxe3+ {[%clk 0:00:03]}  Kh1 {[%clk 0:00:06]} 71. Qc1# {[%clk 0:00:03]} 1-0


[Site "https://www.chess.com"]

[Event "Titled Tuesday Blitz June 14 Late 2022"]
[White "Riehle, Marco"]
[Black "Kozak, Adam"]
[WhiteFideId "12904392"]
[BlackFideId "753246"]
[WhiteElo "2462"]
[BlackElo "2459"]
[Result "1/2-1/2"]
[Round "06"]
[TimeControl "180+1"]
[Date "2022.06.14"]
[WhiteClock "0:01:16"]
[BlackClock "0:00:52"]

1. e4 {[%clk 0:02:59]}  e5 {[%clk 0:02:57]} 2. Nf3 {[%clk 0:02:59]}  Nc6 {[%clk 0:02:57]} 3. Bc4 {[%clk 0:02:59]}  Nf6 {[%clk 0:02:57]} 4. d4 {[%clk 0:03:00]}  exd4 {[%clk 0:02:54]} 5. O-O {[%clk 0:03:00]}  h6 {[%clk 0:02:36]} 6. e5 {[%clk 0:02:54]}  d5 {[%clk 0:02:36]} 7. Bb5 {[%clk 0:02:54]}  Ne4 {[%clk 0:02:35]} 8. Nxd4 {[%clk 0:02:54]}  Bd7 {[%clk 0:02:31]} 9. Bxc6 {[%clk 0:02:53]}  bxc6 {[%clk 0:02:29]} 10. f3 {[%clk 0:02:54]}  Nc5 {[%clk 0:02:27]} 11. f4 {[%clk 0:02:54]}  Ne4 {[%clk 0:02:23]} 12. Be3 {[%clk 0:02:53]}  Bc5 {[%clk 0:02:22]} 13. Nd2 {[%clk 0:02:53]}  O-O {[%clk 0:02:18]} 14. Nxe4 {[%clk 0:02:48]}  dxe4 {[%clk 0:02:19]} 15. Qe2 {[%clk 0:02:47]}  Re8 {[%clk 0:02:16]} 16. Nb3 {[%clk 0:02:45]}  Bb6 {[%clk 0:02:16]} 17. Bc5 {[%clk 0:02:34]}  Be6 {[%clk 0:02:14]} 18. Bxb6 {[%clk 0:02:23]}  axb6 {[%clk 0:02:15]} 19. Qxe4 {[%clk 0:02:22]}  Bd5 {[%clk 0:02:15]} 20. Qe3 {[%clk 0:02:18]}  Ra4 {[%clk 0:02:14]} 21. Nd2 {[%clk 0:02:01]}  c5 {[%clk 0:01:52]} 22. c4 {[%clk 0:01:55]}  Bxc4 {[%clk 0:01:48]} 23. Nxc4 {[%clk 0:01:51]}  Rxc4 {[%clk 0:01:48]} 24. Rad1 {[%clk 0:01:47]}  Rd4 {[%clk 0:01:48]} 25. Rxd4 {[%clk 0:01:47]}  Qxd4 {[%clk 0:01:48]} 26. Qxd4 {[%clk 0:01:42]}  cxd4 {[%clk 0:01:49]} 27. b4 {[%clk 0:01:42]}  c5 {[%clk 0:01:46]} 28. bxc5 {[%clk 0:01:42]}  bxc5 {[%clk 0:01:47]} 29. Rc1 {[%clk 0:01:42]}  Rc8 {[%clk 0:01:47]} 30. Rc4 {[%clk 0:01:42]}  f6 {[%clk 0:01:39]} 31. Kf2 {[%clk 0:01:36]}  Kf7 {[%clk 0:01:39]} 32. Kf3 {[%clk 0:01:36]}  Ke6 {[%clk 0:01:38]} 33. exf6 {[%clk 0:01:32]}  gxf6 {[%clk 0:01:38]} 34. Ke4 {[%clk 0:01:22]}  f5+ {[%clk 0:01:38]} 35. Kd3 {[%clk 0:01:23]}  Kd5 {[%clk 0:01:38]} 36. Ra4 {[%clk 0:01:23]}  c4+ {[%clk 0:01:38]} 37. Kc2 {[%clk 0:01:21]}  Ke4 {[%clk 0:01:38]} 38. g3 {[%clk 0:01:21]}  Ke3 {[%clk 0:01:37]} 39. Ra5 {[%clk 0:01:21]}  Rd8 {[%clk 0:01:26]} 40. Re5+ {[%clk 0:01:20]}  Kf3 {[%clk 0:01:26]} 41. Rc5 {[%clk 0:01:17]}  Ke3 {[%clk 0:01:02]} 42. Re5+ {[%clk 0:01:16]}  Kf2 {[%clk 0:01:02]} 43. Rc5 {[%clk 0:01:17]}  Ke3 {[%clk 0:00:52]} 44. Re5+ {[%clk 0:01:16]} 1/2-1/2


[Site "https://www.chess.com"]